bitfinex/quotes_SOLUSD_20250722
["timestamp","ask_amount","ask_price","bid_price","bid_amount"]
[1753163396785,50.28162308,195.78,195.77,0.1]
[1753163397003,92.24939711,195.78,195.77,0.1]
[1753163397403,92.81939711,195.78,195.77,0.1]
[1753163398298,92.81939711,195.78,195.77,1e-08]
[1753163398498,99.10959711,195.78,195.77,1e-08]
[1753163399789,26.0,195.74,195.66,0.67]
[1753163399990,7.49693911,195.69,195.66,0.67]
[1753163400189,44.35693911,195.68,195.64,0.67]
[1753163400591,44.35693911,195.68,195.62,7.49693911]
[1753163400592,44.35693911,195.68,195.65,0.67]
[1753163400796,36.86,195.68,195.66,0.67]
[1753163400992,21.89275724,195.77,195.67,0.67]
[1753163401198,36.86,195.76,195.67,0.67]
[1753163401500,1.5624,195.8,195.67,0.67]
[1753163401501,7.49693911,195.8,195.74,7.49693911]
[1753163401689,36.88,195.81,195.76,7.49693911]
[1753163401901,36.88,195.8,195.77,0.67]
[1753163402204,7.49693911,195.8,195.77,0.67]
[1753163402385,36.88,195.79,195.78,0.67]
[1753163402584,36.88,195.83,195.78,8.16693911]
[1753163402809,1.6119,195.91,195.82,7.49693911]
[1753163402997,7.49693911,195.92,195.86,7.49693911]
[1753163403316,36.92,195.91,195.87,8.16693911]
[1753163403489,36.92,195.92,195.88,0.67]
[1753163403817,36.92,195.92,195.89,0.67]
[1753163403988,33.92,195.92,195.89,0.67]
[1753163404188,33.92,195.92,195.87,0.67]
[1753163404391,41.41693911,195.92,195.88,0.67]
[1753163404585,7.49693911,195.9,195.84,8.16693911]
[1753163404909,7.49693911,195.85,195.78,5.10775197]
[1753163405087,44.41693911,195.84,195.78,5.77775197]
[1753163405290,44.41693911,195.83,195.78,5.77775197]
[1753163405793,26.0,195.84,195.79,0.67]
[1753163406010,44.41693911,195.84,195.79,0.67]
[1753163406230,26.0,195.87,195.8,0.67]
[1753163406231,26.0,195.85,195.8,0.67]
[1753163406514,26.0,195.85,195.76,18.93499922]
[1753163406515,7.49693911,195.84,195.79,0.67]
[1753163406816,7.49693911,195.83,195.79,0.67]
[1753163407003,44.45693911,195.85,195.8,0.67]
[1753163407186,36.96,195.86,195.81,8.16693911]
[1753163407391,36.96,195.86,195.82,0.67]
[1753163407603,44.45693911,195.86,195.82,0.67]
[1753163407894,36.96,195.86,195.82,0.67]
[1753163408106,36.96,195.86,195.83,0.72]
[1753163408495,36.96,195.86,195.83,5.10644707]
[1753163408709,7.49693911,195.85,195.79,8.21693911]
[1753163409303,44.47693911,195.86,195.8,8.21693911]
[1753163409526,7.49693911,195.9,195.84,7.49693911]
[1753163409870,7.49693911,195.91,195.85,0.72]
[1753163409987,7.49693911,195.87,195.82,0.72]
[1753163410187,37.0,195.9,195.84,7.49693911]
[1753163410417,37.0,195.9,195.85,5.82594842]
[1753163410615,37.0,195.9,195.85,5.10594842]
[1753163410787,37.0,195.9,195.86,0.72]
[1753163410983,36.5,195.9,195.87,0.72]
[1753163411192,7.49693911,195.88,195.82,0.72]
[1753163411397,37.02,195.87,195.82,8.21693911]
[1753163411631,37.02,195.87,195.83,0.72]
[1753163412003,37.02,195.87,195.84,0.72]
[1753163412197,7.49693911,195.91,195.85,8.21693911]
[1753163412418,37.02,195.94,195.87,12.60236617]
[1753163412600,7.49693911,195.93,195.88,0.72]
[1753163412795,37.02,195.94,195.81,6.0605]
[1753163412796,63.02,195.94,195.85,0.72]
[1753163413000,7.49693911,195.89,195.85,0.72]
[1753163413200,7.49693911,195.91,195.86,0.72]
[1753163413409,7.49693911,195.9,195.86,0.72]
[1753163413615,7.49693911,195.87,195.81,0.72]
[1753163413812,7.49693911,195.85,195.81,0.72]
[1753163414199,7.49693911,195.85,195.82,0.72]
[1753163414732,7.49693911,195.88,195.83,0.72]
[1753163414938,90.89875625,196.0,195.86,7.49693911]
[1753163415227,7.49693911,195.92,195.87,0.72]
[1753163415409,7.49693911,195.91,195.87,0.72]
[1753163415719,7.49693911,195.9,195.84,8.21693911]
[1753163415925,7.49693911,195.86,195.84,0.72]
[1753163416220,44.51693911,195.88,195.84,0.72]
[1753163416726,7.49693911,195.85,195.8,0.72]
[1753163416915,7.49693911,195.85,195.81,0.72]
[1753163417709,42.69533407,195.88,195.77,0.72]
[1753163417710,54.88825014,195.88,195.77,0.72]
[1753163417924,7.49693911,195.82,195.77,0.72]
[1753163418124,7.49693911,195.83,195.78,0.72]
[1753163418322,7.49693911,195.81,195.75,7.49693911]
[1753163418719,7.49693911,195.81,195.75,12.60536571]
[1753163419021,7.49693911,195.78,195.73,0.03]
[1753163419227,7.49693911,195.76,195.73,0.03]
[1753163419434,7.49693911,195.74,195.73,0.03]
[1753163419643,37.06,195.74,195.73,0.03]
[1753163419824,7.49693911,195.74,195.73,0.03]
[1753163420323,8.06693911,195.74,195.73,0.03]
[1753163420711,7.49693911,195.74,195.73,0.03]
[1753163420907,5.10823544,195.77,195.73,0.03]
[1753163421122,44.55693911,195.77,195.73,0.75]
[1753163421304,37.06,195.77,195.73,0.75]
[1753163421499,37.06,195.77,195.73,0.03]
[1753163421717,7.49693911,195.76,195.73,0.03]
[1753163421915,7.49693911,195.74,195.73,0.03]
[1753163422307,8.06693911,195.74,195.73,0.03]
[1753163422703,12.60575692,195.74,195.73,0.03]
[1753163424410,26.0,195.71,195.63,0.72]
[1753163424613,7.49693911,195.69,195.63,8.21693911]
[1753163424813,7.49693911,195.69,195.63,0.72]
[1753163425115,37.06,195.72,195.67,7.49693911]
[1753163425332,37.06,195.72,195.68,0.72]
[1753163425532,37.06,195.72,195.69,0.72]
[1753163425730,26.0,195.76,195.7,0.72]
[1753163426026,7.49693911,195.76,195.7,0.72]
[1753163426227,17.35468397,195.76,195.65,0.72]
[1753163426434,26.0,195.72,195.65,0.72]
[1753163426637,44.63693911,195.71,195.65,0.72]
[1753163426817,7.49693911,195.69,195.65,0.72]
[1753163427139,7.49693911,195.68,195.65,0.72]
[1753163427340,7.49693911,195.68,195.63,0.72]
[1753163427645,12.60734334,195.68,195.64,0.72]
[1753163427812,12.60734334,195.68,195.59,0.03]
[1753163427813,7.49693911,195.65,195.59,0.03]
[1753163428018,7.49693911,195.6,195.59,0.03]
[1753163428427,26.0,195.66,195.59,0.03]
[1753163428636,7.49693911,195.65,195.59,13.35958931]
[1753163428836,7.49693911,195.66,195.6,8.21693911]
[1753163429051,7.49693911,195.66,195.61,0.72]
[1753163429224,7.49693911,195.64,195.61,0.72]
[1753163429427,7.49693911,195.65,195.59,5.86261429]
[1753163429624,7.49693911,195.66,195.6,8.21693911]
[1753163429824,7.49693911,195.64,195.6,0.72]
[1753163430047,7.49693911,195.62,195.59,0.03]
[1753163430358,37.22,195.65,195.59,0.03]
[1753163430522,7.49693911,195.64,195.6,0.72]
[1753163430724,7.49693911,195.68,195.62,7.49693911]
[1753163430928,14.66033911,195.76,195.67,7.49693911]
[1753163431236,7.49693911,195.78,195.68,0.72]
[1753163431439,7.49693911,195.78,195.72,7.49693911]
[1753163431440,5.10813488,195.77,195.72,7.49693911]
[1753163431734,5.10813488,195.77,195.7,5.10969338]
[1753163431735,12.60507399,195.77,195.7,7.49693911]
[1753163431944,7.49693911,195.77,195.7,5.10969961]
[1753163432144,7.49693911,195.76,195.7,7.49693911]
[1753163432336,7.49693911,195.77,195.7,7.49693911]
[1753163432525,44.73693911,195.79,195.73,7.49693911]
[1753163432846,44.73693911,195.84,195.77,7.49693911]
[1753163433144,44.73693911,195.84,195.78,7.49693911]
[1753163433355,1.642,195.88,195.83,7.49693911]
[1753163433526,56.33124399,195.91,195.8,5.10725229]
[1753163433721,43.7299,195.91,195.86,7.49693911]
[1753163433927,48.83429585,195.91,195.86,7.49693911]
[1753163434123,5.10439585,195.91,195.86,8.21693911]
[1753163434352,5.10439585,195.91,195.83,0.72]
[1753163434654,12.60133496,195.91,195.83,0.72]
[1753163434835,12.60133496,195.91,195.84,7.49693911]
[1753163435437,13.17133496,195.91,195.8,0.72]
[1753163435632,7.49693911,195.9,195.84,7.49693911]
[1753163435831,7.49693911,195.88,195.82,7.49693911]
[1753163436332,8.06693911,195.89,195.83,7.49693911]
[1753163436532,5.10439585,195.91,195.84,7.49693911]
[1753163436762,12.60133496,195.91,195.84,7.49693911]
[1753163437134,12.60133496,195.91,195.85,7.49693911]
[1753163437326,5.10439585,195.91,195.85,7.49693911]
[1753163437526,5.10401457,195.93,195.86,7.49693911]
[1753163437730,42.38401457,195.93,195.87,7.49693911]
[1753163437958,24.28162308,195.92,195.77,12.76964566]
[1753163438170,7.49693911,195.89,195.82,0.67]
[1753163438342,7.49693911,195.89,195.82,8.16693911]
[1753163438540,0.57,195.91,195.82,8.16693911]
[1753163438750,7.49693911,195.91,195.84,7.49693911]
[1753163438942,7.49693911,195.91,195.85,7.49693911]
[1753163439141,42.38401457,195.93,195.86,0.67]
[1753163439343,7.49693911,195.92,195.86,0.67]
[1753163439540,5.10464522,195.9,195.86,0.67]
[1753163439730,12.60125767,195.92,195.86,0.67]
[1753163440456,49.88083495,195.93,195.86,8.16693911]
[1753163440854,7.49693911,195.92,195.86,8.16693911]
[1753163441535,49.88083495,195.93,195.86,8.16693911]
[1753163441936,7.49693911,195.92,195.86,8.16693911]
[1753163442147,7.49693911,195.92,195.83,0.67]
[1753163442354,7.49693911,195.89,195.82,7.49693911]
[1753163442544,7.49693911,195.88,195.8,0.67]
[1753163442754,7.49693911,195.87,195.8,8.16693911]
[1753163443062,7.49693911,195.87,195.8,0.67]
[1753163443236,7.49693911,195.84,195.78,7.49693911]
[1753163443635,37.24,195.88,195.76,7.49693911]
[1753163443636,7.49693911,195.82,195.76,7.49693911]
[1753163443862,7.49693911,195.81,195.75,7.49693911]
[1753163444160,49.823409,195.83,195.76,8.16693911]
[1753163444560,37.22,195.83,195.78,7.49693911]
[1753163444871,6.0299,195.9,195.81,7.49693911]
[1753163445036,26.0,195.88,195.83,7.49693911]
[1753163445237,6.0299,195.9,195.87,7.49693911]
[1753163445436,46.28923911,195.93,195.87,7.49693911]
[1753163445660,77.39318459,195.93,195.87,8.16693911]
[1753163445961,6.0899,195.94,195.87,8.16693911]
[1753163445962,0.06,195.94,195.9,7.49693911]
[1753163446171,0.06,195.94,195.91,7.49693911]
[1753163446756,0.06,195.94,195.9,7.49693911]
[1753163447636,0.06,195.94,195.91,8.16693911]
[1753163447835,0.06,195.94,195.92,7.49693911]
[1753163448040,0.06,195.94,195.93,7.49693911]
[1753163448851,0.06,195.94,195.93,8.16693911]
[1753163449836,0.06,195.94,195.93,13.27080273]
[1753163450137,0.06,195.98,195.93,26.03046179]
[1753163450343,0.06,195.98,195.97,7.49693911]
[1753163450846,0.06,195.98,195.97,8.16693911]
[1753163451846,9.99,196.0,195.97,8.16693911]
[1753163452037,9.99,196.0,195.99,7.49693911]
[1753163452234,9.99,196.0,195.99,8.16693911]
[1753163453138,1e-08,196.0,195.99,8.16693911]
[1753163453342,1e-08,196.01,195.99,34.16693911]
[1753163453642,1e-08,196.01,196.0,0.67]
[1753163454058,4.55693912,196.09,196.0,13.26897992]
[1753163454256,7.49693911,196.01,195.97,0.67]
[1753163454459,7.49693911,196.0,195.94,5.77360314]
[1753163454665,26.0,196.04,195.95,7.49693911]
[1753163454864,7.49693911,196.02,195.95,8.16693911]
[1753163455357,7.49693911,196.01,195.96,0.67]
[1753163455568,26.0,196.04,195.96,0.67]
[1753163455778,7.49693911,196.0,195.94,5.10360314]
[1753163455972,7.49693911,195.99,195.93,12.60077688]
[1753163456174,5.1014642,196.03,195.95,0.67]
[1753163456383,7.49693911,196.01,195.95,0.67]
[1753163457168,7.49693911,196.02,195.95,8.16693911]
[1753163457372,7.49693911,196.01,195.95,0.67]
[1753163457560,7.49693911,196.0,195.93,5.10383777]
[1753163457758,7.49693911,196.0,195.93,12.60077688]
[1753163457949,7.49693911,195.99,195.93,12.60077688]
[1753163458153,5.10185808,196.01,195.93,12.60077688]
[1753163458355,7.49693911,195.99,195.93,12.60077688]
[1753163458552,5.67185808,196.01,195.93,12.60077688]
[1753163458852,7.49693911,195.99,195.94,0.67]
[1753163459062,7.49693911,196.0,195.95,0.67]
[1753163459260,7.49693911,196.01,195.96,0.67]
[1753163459466,7.49693911,196.04,195.97,8.16693911]
[1753163459653,7.49693911,196.04,195.98,8.16693911]
[1753163459854,7.55693911,196.06,196.0,7.49693911]
[1753163460171,0.06,196.06,196.02,12.59845936]
[1753163460360,0.06,196.06,196.01,12.59870729]
[1753163460554,7.49693911,196.02,195.95,0.67]
[1753163460761,7.49693911,196.0,195.95,0.67]
[1753163460969,7.49693911,196.04,195.97,7.49693911]
[1753163461274,7.49693911,196.05,195.98,8.16693911]
[1753163461474,7.49693911,195.99,195.9,5.77464522]
[1753163461670,7.49693911,195.99,195.86,1.6647]
[1753163461671,26.57,195.98,195.86,0.67]
[1753163461871,7.49693911,195.92,195.86,8.16693911]
[1753163462171,7.49693911,195.93,195.87,5.10542706]
[1753163462468,7.49693911,195.96,195.89,7.49693911]
[1753163462770,7.49693911,195.97,195.9,8.16693911]
[1753163463075,7.49693911,195.99,195.92,7.49693911]
[1753163463252,7.49693911,195.99,195.93,7.49693911]
[1753163463450,6.046,196.01,195.95,7.49693911]
[1753163463651,7.49693911,195.99,195.92,7.49693911]
[1753163463857,7.49693911,196.0,195.93,7.49693911]
[1753163464155,7.49693911,196.0,195.94,7.49693911]
[1753163464346,13.54293911,196.01,195.95,7.49693911]
[1753163464550,7.49693911,195.98,195.92,7.49693911]
[1753163464764,7.49693911,195.98,195.91,7.49693911]
[1753163465854,7.49693911,195.98,195.92,7.49693911]
[1753163466571,7.49693911,195.98,195.92,8.16693911]
[1753163467077,5.10254866,195.99,195.93,7.49693911]
[1753163467251,5.10254866,195.99,195.88,37.44]
[1753163467252,17.8583015,195.99,195.88,38.11]
[1753163467453,17.8583015,195.99,195.83,45.24524732]
[1753163467454,7.49693911,195.93,195.87,7.49693911]
[1753163467757,55.2583015,195.99,195.88,7.49693911]
[1753163467758,0.57,195.97,195.88,7.49693911]
[1753163467962,12.60002137,195.96,195.89,7.49693911]
[1753163468568,7.49693911,195.95,195.88,8.16693911]
[1753163468772,7.49693911,195.95,195.89,7.49693911]
[1753163469162,7.49693911,195.94,195.88,8.16693911]
[1753163469463,7.49693911,195.95,195.89,7.49693911]
[1753163469898,5.10360314,195.94,195.88,8.16693911]
[1753163470064,5.10360314,195.94,195.88,7.49693911]
[1753163470865,12.60030497,195.95,195.89,0.03]
[1753163471266,12.60003202,195.96,195.89,7.52693911]
[1753163471472,26.57,195.97,195.89,7.52693911]
[1753163471473,5.10204081,196.0,195.95,7.49693911]
[1753163471872,6.046,196.01,195.97,7.49693911]
[1753163472475,12.65765877,196.06,196.0,7.49693911]
[1753163472877,31.16071966,196.06,196.0,7.49693911]
[1753163473177,0.06,196.06,196.02,7.49693911]
[1753163473479,0.06,196.06,196.03,7.49693911]
[1753163473655,0.06,196.06,196.05,7.49693911]
[1753163474176,0.06,196.06,196.05,13.27767871]
[1753163474559,0.06,196.09,196.05,13.27767871]
[1753163474863,0.06,196.09,196.08,7.49693911]
[1753163475263,0.06,196.13,196.08,15.67387822]
[1753163475477,0.06,196.13,196.12,7.49693911]
[1753163475656,0.06,196.14,196.12,7.49693911]
[1753163475869,0.2,196.17,196.13,45.55693911]
[1753163476190,0.06,196.2,196.16,7.49693911]
[1753163476376,0.06,196.22,196.21,7.49693911]
[1753163476566,0.06,196.22,196.21,10.91175684]
[1753163476757,0.06,196.22,196.21,11.59175684]
[1753163477286,0.06,196.22,196.21,15.22828809]
[1753163478473,0.06,196.22,196.21,20.32486828]
[1753163478667,0.06,196.22,196.21,15.22828809]
[1753163478868,0.06,196.22,196.21,20.32486828]
[1753163479080,0.00545631,196.22,196.21,20.32486828]
[1753163479665,0.06,196.24,196.23,26.0]
[1753163479893,0.06,196.24,196.23,40.54828809]
[1753163480177,0.06,196.24,196.23,46.32434883]
[1753163480977,0.06,196.24,196.23,15.22828809]
[1753163481279,0.06,196.24,196.23,52.62828809]
[1753163481663,0.06,196.24,196.23,14.54828809]
[1753163481868,0.06,196.24,196.23,51.94828809]
[1753163482080,0.06,196.24,196.23,52.62828809]
[1753163482285,0.06,196.24,196.23,57.72434883]
[1753163482465,0.2,196.34,196.26,26.0]
[1753163482661,0.2,196.34,196.33,11.13347036]
[1753163482873,0.2,196.34,196.33,14.54828809]
[1753163483072,5.29320566,196.34,196.33,14.54828809]
[1753163483672,5.29320566,196.34,196.33,3.41481773]
[1753163483869,5.29320566,196.34,196.32,11.13347036]
[1753163484070,0.2,196.34,196.33,3.42221593]
[1753163484270,0.2,196.34,196.33,14.55568629]
[1753163484575,0.2,196.34,196.33,52.59568629]
[1753163486063,0.2,196.4,196.34,5.09320566]
[1753163486264,0.2,196.4,196.39,11.13347036]
[1753163486478,0.2,196.4,196.39,3.42221593]
[1753163486786,0.2,196.4,196.38,37.34]
[1753163487190,0.2,196.4,196.39,3.40970635]
[1753163487486,0.2,196.4,196.31,0.68]
[1753163487487,16.42512005,196.4,196.31,0.68]
[1753163487673,11.82347036,196.39,196.33,11.13347036]
[1753163487984,11.82347036,196.39,196.34,3.40782126]
[1753163488175,11.13347036,196.35,196.3,37.34]
[1753163488377,0.69,196.34,196.31,3.41232252]
[1753163488680,17.82258885,196.38,196.32,3.41232252]
[1753163488681,16.78468397,196.37,196.32,3.41232252]
[1753163488885,11.82347036,196.33,196.26,48.47347036]
[1753163489088,11.13347036,196.32,196.27,3.41428551]
[1753163489269,11.13347036,196.32,196.28,3.41428551]
[1753163489464,11.82347036,196.31,196.26,37.34]
[1753163489668,32.5656,196.35,196.24,0.97876774]
[1753163489669,11.13347036,196.27,196.24,0.97876774]
[1753163489879,11.13347036,196.26,196.24,0.97876774]
[1753163490186,5.09450303,196.29,196.24,0.97876774]
[1753163490396,5.09426203,196.3,196.25,3.41907515]
[1753163490601,11.82347036,196.33,196.26,14.5515418]
[1753163490763,6.5656,196.35,196.29,11.13347036]
[1753163491188,11.82347036,196.34,196.28,11.13347036]
[1753163491379,11.13347036,196.32,196.26,37.34]
[1753163491578,11.13347036,196.33,196.26,48.47347036]
[1753163492184,5.09372453,196.32,196.26,48.47347036]
[1753163492586,16.22719489,196.32,196.26,48.47347036]
[1753163492778,16.91719489,196.32,196.26,37.34]
[1753163492977,16.91719489,196.32,196.26,48.47347036]
[1753163493279,11.13347036,196.3,196.26,37.34]
[1753163493493,11.13347036,196.3,196.24,0.97876774]
[1753163493494,0.69,196.29,196.24,0.97876774]
[1753163493796,11.13347036,196.31,196.25,3.41641942]
[1753163493995,11.13347036,196.3,196.24,0.97876774]
[1753163494179,5.09476258,196.28,196.24,0.97876774]
[1753163494369,5.78476258,196.28,196.24,0.97876774]
[1753163494570,16.91823294,196.28,196.24,0.97876774]
[1753163495077,11.13347036,196.29,196.24,0.97876774]
[1753163495285,16.22773924,196.3,196.24,12.1122381]
[1753163495508,5.09426888,196.3,196.25,3.41726796]
[1753163495688,31.78426888,196.3,196.24,0.97876774]
[1753163495896,42.91773924,196.3,196.25,3.41738292]
[1753163496073,37.82347036,196.3,196.24,12.1122381]
[1753163496276,37.82347036,196.3,196.25,3.41718875]
[1753163496476,60.65028397,196.35,196.25,11.13347036]
[1753163496477,0.69,196.33,196.25,11.13347036]
[1753163496678,11.13347036,196.32,196.26,14.54985571]
[1753163496984,11.82347036,196.33,196.27,14.54936263]
[1753163497174,11.13347036,196.34,196.28,16.22823294]
[1753163497378,22.79204238,196.35,196.29,11.13347036]
[1753163497695,22.79204238,196.35,196.28,16.22823294]
[1753163498892,22.79204238,196.35,196.29,16.22793097]
[1753163499088,17.69907036,196.35,196.29,16.22793097]
[1753163499596,37.26,196.37,196.31,11.13347036]
[1753163499928,0.06,196.38,196.33,11.13347036]
[1753163500083,0.06,196.38,196.32,11.85347036]
[1753163500281,0.06,196.38,196.33,11.13347036]
[1753163500512,0.06,196.38,196.32,11.13347036]
[1753163500881,5.1522524,196.38,196.32,11.13347036]
[1753163501080,16.28572276,196.38,196.3,5.09421126]
[1753163501292,16.28572276,196.38,196.32,11.13347036]
[1753163501704,0.06,196.38,196.32,11.13347036]
[1753163502478,0.06,196.38,196.33,3.40968229]
[1753163502677,0.06,196.38,196.32,16.22705246]
[1753163502898,0.06,196.38,196.33,3.40950311]
[1753163503088,0.06,196.38,196.32,11.13347036]
[1753163503487,0.06,196.38,196.33,3.40998786]
[1753163503792,0.06,196.38,196.32,11.13347036]
[1753163503995,11.19347036,196.38,196.32,11.13347036]
[1753163504193,11.85347036,196.37,196.3,11.13347036]
[1753163504502,11.13347036,196.36,196.29,11.13347036]
[1753163504798,16.22632704,196.36,196.3,3.41499514]
[1753163505102,11.13347036,196.35,196.29,11.13347036]
[1753163505305,7.47055819,196.35,196.3,3.41512867]
[1753163505515,7.47055819,196.31,196.25,7.47055819]
[1753163505682,7.47055819,196.26,196.2,0.03]
[1753163505878,7.47055819,196.25,196.2,0.03]
[1753163506101,8.19055819,196.25,196.2,0.03]
[1753163506606,26.0,196.22,196.2,0.03]
[1753163506903,12.56713838,196.21,196.2,0.03]
[1753163507402,16.96309374,196.21,196.2,0.03]
[1753163507806,11.14651355,196.22,196.2,0.03]
[1753163508006,11.14651355,196.25,196.2,0.03]
[1753163508305,16.24153458,196.28,196.21,15.29445457]
[1753163508492,16.24153458,196.28,196.22,3.42794102]
[1753163508886,11.14651355,196.28,196.23,0.72]
[1753163509084,11.14651355,196.28,196.24,4.1492209]
[1753163509302,6.3687,196.29,196.25,3.4395326]
[1753163509492,6.3687,196.29,196.24,0.72]
[1753163509691,6.3687,196.29,196.25,3.44084644]
[1753163509886,6.3687,196.29,196.24,11.86651355]
[1753163509887,6.3687,196.29,196.26,3.44061938]
[1753163510183,6.3687,196.29,196.23,11.86651355]
[1753163510494,11.14651355,196.31,196.24,14.58794317]
[1753163510685,11.14651355,196.31,196.25,3.44142962]
[1753163510885,11.14651355,196.31,196.26,3.44142962]
[1753163511093,16.24057194,196.31,196.27,3.44142962]
[1753163511388,11.14651355,196.31,196.28,3.4455425]
[1753163511598,11.86651355,196.32,196.29,3.4455425]
[1753163511806,11.14651355,196.32,196.25,11.86651355]
[1753163512003,11.14651355,196.32,196.26,14.59216566]
[1753163512202,12.74931355,196.33,196.27,3.44565211]
[1753163512502,55.00911355,196.34,196.28,3.44565211]
[1753163512701,60.10235863,196.34,196.29,3.44565211]
[1753163512889,11.86651355,196.33,196.3,3.44565211]
[1753163513091,16.78468397,196.3,196.16,0.03]
[1753163513292,26.0,196.28,196.18,5.09733781]
[1753163513508,11.14651355,196.24,196.19,5.09687318]
[1753163513689,11.14651355,196.24,196.17,16.96389574]
[1753163514006,11.14651355,196.24,196.18,5.09725981]
[1753163514188,11.14651355,196.23,196.17,5.81758918]
[1753163514389,11.14651355,196.23,196.18,5.09728863]
[1753163514590,11.14651355,196.24,196.21,0.72]
[1753163515003,11.14651355,196.24,196.18,5.09710616]
[1753163515408,26.0,196.26,196.2,0.75]
[1753163515600,11.14651355,196.24,196.2,0.75]
[1753163515911,11.14651355,196.23,196.2,0.03]
[1753163516206,11.14651355,196.21,196.2,0.03]
[1753163516706,11.86651355,196.21,196.2,0.03]
[1753163517606,11.14651355,196.21,196.2,0.03]
[1753163517915,5.09606195,196.23,196.2,0.03]
[1753163517916,11.14651355,196.23,196.2,0.03]
[1753163518091,11.14651355,196.22,196.2,0.03]
[1753163518298,11.14651355,196.21,196.2,0.03]
[1753163518810,11.86651355,196.21,196.2,0.03]
[1753163519018,16.96309374,196.21,196.2,0.03]
[1753163520293,52.67012819,196.21,196.16,0.03]
[1753163520494,16.78468397,196.15,196.12,0.03]
[1753163520691,37.14651355,196.13,196.12,0.03]
[1753163521424,26.0,196.13,196.12,0.03]
[1753163521623,11.14651355,196.17,196.12,0.03]
[1753163521808,26.0,196.18,196.12,0.75]
[1753163521993,37.14651355,196.18,196.13,0.72]
[1753163522314,37.14651355,196.18,196.12,5.12889364]
[1753163522513,37.16,196.19,196.13,11.14651355]
[1753163522706,37.16,196.23,196.17,11.14651355]
[1753163522905,48.30651355,196.24,196.18,0.72]
[1753163523115,63.16,196.24,196.18,0.72]
[1753163523314,37.16,196.24,196.19,11.14651355]
[1753163523515,37.16,196.24,196.2,0.72]
[1753163523697,11.14651355,196.3,196.23,11.14651355]
[1753163523890,37.94,196.31,196.23,11.14651355]
[1753163524094,48.36651355,196.31,196.24,11.14651355]
[1753163524404,11.14651355,196.3,196.24,11.14651355]
[1753163524594,11.14651355,196.3,196.24,16.24230125]
[1753163525002,37.22,196.31,196.25,11.86651355]
[1753163525302,37.22,196.31,196.26,14.56603504]
[1753163525503,37.22,196.31,196.27,4.13952149]
[1753163525710,0.06,196.31,196.28,3.41952149]
[1753163525908,0.06,196.31,196.29,15.28603504]
[1753163526214,0.06,196.31,196.3,3.41952149]
[1753163526417,0.06,196.31,196.3,20.38027854]
[1753163527413,0.0056982,196.31,196.3,20.38027854]
[1753163529105,0.06,196.38,196.3,37.67438686]
[1753163529307,0.06,196.38,196.37,7.46265724]
[1753163529508,0.06,196.38,196.37,10.88217873]
[1753163529699,0.06,196.38,196.37,11.59217873]
[1753163530310,0.06,196.38,196.37,16.68460629]
[1753163531206,0.06,196.38,196.37,20.33763856]
[1753163532017,0.06,196.38,196.37,37.12232253]
[1753163532526,0.2,196.4,196.38,16.78468397]
[1753163532729,0.2,196.4,196.39,51.615211]
[1753163532925,0.2,196.4,196.39,69.10989497]
[1753163533226,0.06,196.5,196.39,69.10989497]
[1753163533227,0.06,196.5,196.42,16.78468397]
[1753163533429,0.06,196.5,196.49,11.11568951]
[1753163533639,0.06,196.5,196.49,3.41952149]
[1753163533925,16.92474803,196.5,196.49,3.41952149]
[1753163534118,0.06,196.5,196.49,3.41952149]
[1753163534625,11.83568951,196.5,196.49,3.41952149]
[1753163534799,11.83568951,196.5,196.42,11.11568951]
[1753163534800,0.72,196.5,196.42,11.11568951]
[1753163535006,0.72,196.5,196.43,3.39872359]
[1753163535209,0.72,196.5,196.42,11.11568951]
[1753163535210,11.11568951,196.49,196.44,3.39872359]
[1753163535409,0.06,196.5,196.48,11.11568951]
[1753163535621,0.06,196.5,196.49,3.39872359]
[1753163536620,11.83568951,196.5,196.49,3.39872359]
[1753163536817,11.83568951,196.5,196.41,11.82568951]
[1753163537011,11.11568951,196.48,196.42,3.39476895]
[1753163537328,26.0,196.48,196.43,3.39476895]
[1753163537524,11.11568951,196.45,196.39,11.82568951]